bitfinex/quotes_ETHUSD_20240928
["timestamp","ask_amount","ask_price","bid_price","bid_amount"]
[1727546776389,3.72309,2686.0,2685.6,1.603953]
[1727546776587,4.05752,2686.7,2685.9,0.7683]
[1727546776779,3.72241,2686.5,2686.0,0.07445134]
[1727546777377,3.72241,2686.5,2686.0,0.53104447]
[1727546777705,3.72241,2686.5,2686.0,4.25402447]
[1727546778206,3.7224,2686.5,2686.0,4.17957313]
[1727546778765,3.7224,2686.5,2686.0,4.25402454]
[1727546778970,3.7224,2686.5,2686.1,0.50223245]
[1727546779487,3.72211,2686.7,2686.1,0.50223245]
[1727546779688,3.72219,2686.6,2686.1,0.50223245]
[1727546781077,3.72245,2686.4,2686.1,0.50223245]
[1727546781372,0.3354,2686.4,2685.5,0.7683]
[1727546781572,3.72336,2685.8,2685.5,0.7683]
[1727546781816,7.44673,2685.8,2685.5,0.7683]
[1727546781971,3.72336,2685.8,2685.5,0.7683]
[1727546782172,3.72349,2685.7,2685.5,0.7683]
[1727546782420,3.72356,2685.6,2685.1,0.7683]
[1727546782716,3.72395,2685.4,2685.1,0.7683]
[1727546783389,7.44789,2685.4,2685.1,0.7683]
[1727546783588,3.72394,2685.4,2685.1,0.7683]
[1727546783899,3.7228,2686.2,2685.6,3.72352]
[1727546784099,3.7228,2686.2,2685.7,0.372352]
[1727546784284,3.7228,2686.2,2685.6,3.72352]
[1727546784486,3.7228,2686.2,2685.4,0.7683]
[1727546784487,3.3828893,2686.2,2685.4,0.7683]
[1727546784676,3.3828893,2686.2,2685.1,0.7683]
[1727546784677,3.72349,2685.7,2685.1,0.7683]
[1727546785016,3.72349,2685.7,2685.1,4.49246]
[1727546785318,7.44642,2685.9,2685.2,3.7241]
[1727546785474,3.72316,2685.9,2685.2,4.62022889]
[1727546785683,3.72316,2685.9,2685.3,0.7683]
[1727546786396,3.72329,2685.8,2685.3,0.7683]
[1727546786624,3.72329,2685.8,2685.3,1.67956889]
[1727546787028,3.72275,2686.2,2685.6,3.72355]
[1727546787338,3.72296,2686.1,2685.6,0.07446143]
[1727546787553,3.72296,2686.1,2685.5,4.49198]
[1727546787691,7.44592,2686.1,2685.5,0.7683]
[1727546788031,3.72296,2686.1,2685.5,5.03220789]
[1727546788410,3.72273,2686.2,2685.6,0.7683]
[1727546788607,3.72273,2686.2,2685.3,0.91126889]
[1727546788608,3.72239,2686.5,2685.9,3.72313]
[1727546788792,3.72239,2686.5,2686.0,4.49123]
[1727546789902,3.72239,2686.5,2686.0,0.7683]
[1727546790239,3.72247,2686.4,2686.0,0.7683]
[1727546791342,3.72247,2686.4,2686.0,1.22488828]
[1727546796052,3.72294,2686.1,2685.7,0.7728]
[1727546796366,3.72309,2686.0,2685.7,0.7728]
[1727546796562,3.72309,2686.0,2685.7,1.222441]
[1727546797475,3.72294,2686.1,2685.7,1.222441]
[1727546798463,3.72302,2686.0,2685.7,1.222441]
[1727546798840,3.72294,2686.1,2685.7,1.222441]
[1727546799362,3.72294,2686.1,2685.7,0.7728]
[1727546799559,3.72324,2685.9,2685.7,0.7728]
[1727546799761,7.44649,2685.9,2685.7,0.7728]
[1727546799969,3.72324,2685.9,2685.7,0.7728]
[1727546800661,3.72324,2685.9,2685.5,0.7728]
[1727546801251,3.7233,2685.8,2685.5,0.7728]
[1727546802028,3.72324,2685.9,2685.5,0.7728]
[1727546804568,3.72338,2685.8,2685.5,0.7728]
[1727546808447,3.72336,2685.8,2685.5,0.7728]
[1727546808634,3.72344,2685.7,2685.5,0.7728]
[1727546809059,3.72344,2685.7,2685.3,1.11378893]
[1727546809302,3.72357,2685.6,2685.3,0.7755]
[1727546814485,3.72357,2685.6,2685.1,0.7755]
[1727546814687,3.72385,2685.4,2685.1,0.7755]
[1727546817401,3.72405,2685.3,2684.8,0.8075]
[1727546821704,3.72385,2685.4,2684.8,4.5321]
[1727546821872,7.4478,2685.4,2684.8,4.5321]
[1727546822595,7.4478,2685.4,2684.9,0.07448307]
[1727546822910,3.72385,2685.4,2684.9,0.90761238]
[1727546823114,3.72399,2685.3,2684.9,0.90761238]
[1727546824002,3.72399,2685.3,2684.9,0.83312931]
[1727546824718,3.72412,2685.2,2684.9,0.83312931]
[1727546828679,3.72406,2685.3,2685.0,0.8075]
[1727546829891,3.72412,2685.2,2685.0,0.8075]
[1727546831827,3.72425,2685.1,2685.0,0.8075]
[1727546832140,3.72425,2685.1,2684.8,0.8075]
[1727546832447,3.72455,2684.9,2684.6,0.745002]
[1727546832597,3.72435,2685.1,2684.5,4.53246]
[1727546832935,3.72434,2685.1,2684.6,3.72491]
[1727546833237,3.72434,2685.1,2684.5,0.8075]
[1727546833392,3.72442,2685.0,2684.5,0.8075]
[1727546833741,3.72442,2685.0,2684.6,0.453259]
[1727546834341,3.72442,2685.0,2684.5,4.53251]
[1727546835923,3.72406,2685.3,2684.9,0.8176]
[1727546836131,3.72323,2685.9,2685.3,3.72397]
[1727546836442,3.7233,2685.8,2685.5,0.8176]
[1727546842335,3.72323,2685.9,2685.5,0.8176]
[1727546842545,3.72294,2686.1,2685.6,0.7714]
[1727546842719,3.72294,2686.1,2685.7,0.456956]
[1727546843227,3.72294,2686.1,2685.8,0.7714]
[1727546846847,7.44589,2686.1,2685.8,0.7714]
[1727546847140,3.72294,2686.1,2685.8,0.7714]
[1727546847510,3.72308,2686.0,2685.8,0.7714]
[1727546848517,3.72323,2685.9,2685.5,0.7714]
[1727546850345,3.72332,2685.8,2685.5,0.7714]
[1727546850551,4.05863,2685.9,2685.5,0.7714]
[1727546854136,3.72323,2685.9,2685.5,0.7714]
[1727546861765,3.7233,2685.8,2685.5,0.7714]
[1727546862567,3.72355,2685.7,2685.2,4.50384]
[1727546862780,3.7233,2685.8,2685.3,3.72395]
[1727546862979,7.44667,2685.8,2685.2,5.36461654]
[1727546863144,3.72343,2685.7,2685.2,9.08865654]
[1727546863343,7.44666,2685.8,2685.2,9.08865654]
[1727546863570,3.7233,2685.8,2685.2,5.36461654]
[1727546863773,3.7233,2685.8,2685.3,3.72397]
[1727546863945,7.44666,2685.8,2685.3,3.72397]
[1727546864144,3.7233,2685.8,2685.3,3.72397]
[1727546864345,3.7233,2685.8,2685.2,5.36461654]
[1727546864567,3.72351,2685.7,2685.2,5.36461654]
[1727546866795,3.72348,2685.7,2685.2,5.36461654]
[1727546867017,3.67348,2685.7,2685.2,5.36461654]
[1727546867413,3.67348,2685.7,2685.2,0.7798]
[1727546867414,3.72366,2685.6,2685.2,0.7798]
[1727546867617,0.3354,2685.7,2684.9,0.8132]
[1727546867618,3.72384,2685.4,2684.9,0.8132]
[1727546867788,3.72384,2685.4,2684.9,4.53771]
[1727546867991,7.44779,2685.4,2684.9,1.639429]
[1727546868191,3.72405,2685.3,2684.9,0.8132]
[1727546869640,3.72385,2685.4,2684.9,0.8132]
[1727546870716,3.72385,2685.4,2684.9,4.5377]
[1727546871308,3.72385,2685.4,2684.9,0.8132]
[1727546871634,3.72401,2685.3,2684.9,0.8132]
[1727546872713,3.72401,2685.3,2684.9,1.266978]
[1727546873612,3.72378,2685.5,2685.0,3.72437]
[1727546874635,3.72365,2685.6,2685.1,4.53737]
[1727546874836,3.72344,2685.7,2685.3,0.8132]
[1727546875046,3.72282,2686.2,2685.6,4.53674]
[1727546875197,3.72282,2686.2,2685.8,0.8132]
[1727546876248,7.44565,2686.2,2685.8,0.8132]
[1727546876410,3.72282,2686.2,2685.8,0.8132]
[1727546877761,3.72287,2686.1,2685.8,0.8132]
[1727546881150,3.7231,2686.0,2685.6,0.8181]
[1727546881303,3.72315,2685.9,2685.6,0.8181]
[1727546882058,3.72329,2685.8,2685.6,0.8181]
[1727546882536,3.72315,2685.9,2685.6,0.8181]
[1727546883542,3.72338,2685.8,2685.4,0.8181]
[1727546883745,3.72315,2685.9,2685.4,0.8181]
[1727546883932,3.72343,2685.7,2685.4,0.8181]
[1727546884929,3.72384,2685.4,2685.2,0.8181]
[1727546885466,3.7238,2685.5,2685.2,0.8181]
[1727546886167,3.72386,2685.4,2685.2,0.8181]
[1727546886369,3.7238,2685.5,2685.2,0.8181]
[1727546887368,7.44758,2685.5,2685.2,0.8181]
[1727546887555,3.72378,2685.5,2685.2,0.8181]
[1727546893735,3.7239,2685.4,2685.2,0.8181]
[1727546895241,3.72378,2685.5,2685.2,0.8181]
[1727546896172,7.44757,2685.5,2685.2,0.8181]
[1727546896468,3.72378,2685.5,2685.2,0.8181]
[1727546913794,3.72385,2685.4,2685.2,0.8181]
[1727546914107,3.72378,2685.5,2685.2,0.8181]
[1727546914308,3.72332,2685.8,2685.4,0.7933]
[1727546915106,7.44668,2685.8,2685.4,0.7933]
[1727546916107,7.6054,2686.0,2685.4,0.7933]
[1727546916306,3.72335,2685.8,2685.4,0.7933]
[1727546916613,3.7235,2685.7,2685.4,0.7933]
[1727546921474,3.72356,2685.6,2685.4,0.7933]
[1727546921694,7.4472,2685.6,2685.4,0.7933]
[1727546921901,3.7237,2685.5,2685.1,0.7633]
[1727546922100,3.7237,2685.5,2685.2,0.90087348]
[1727546923041,3.72356,2685.6,2685.2,0.90087348]
[1727546926405,7.44721,2685.6,2685.2,0.90087348]
[1727546927420,3.72356,2685.6,2685.2,0.90087348]
[1727546928314,3.72387,2685.4,2685.2,0.90087348]
[1727546928646,3.72377,2685.5,2685.2,0.90087348]
[1727546928947,7.4472,2685.6,2685.2,0.90087348]
[1727546929442,3.72356,2685.6,2685.2,0.90087348]
[1727546929951,7.44719,2685.6,2685.2,0.90087348]
[1727546930330,3.72356,2685.6,2685.2,0.90087348]
[1727546932148,7.44719,2685.6,2685.2,0.90087348]
[1727546932455,3.72356,2685.6,2685.3,1.14151698]
[1727546933546,3.7231,2686.0,2685.5,0.7606]
[1727546933856,3.72287,2686.1,2685.7,0.7606]
[1727546934063,3.72287,2686.1,2685.8,1.73738148]
[1727546936657,7.27,2686.4,2685.8,0.7606]
[1727546936658,3.72314,2685.9,2685.8,0.7606]
[1727546936856,3.72331,2685.8,2685.6,0.7603]
[1727546937869,3.72302,2686.0,2685.6,0.7603]
[1727546938143,3.72329,2685.8,2685.6,0.7603]
[1727546938451,3.72342,2685.7,2685.3,0.7603]
[1727546938615,3.72342,2685.7,2685.3,1.28636047]
[1727546938952,3.72329,2685.8,2685.3,5.01033047]
[1727546939505,7.44665,2685.8,2685.3,5.01033047]
[1727546939750,7.44665,2685.8,2685.4,0.65705353]
[1727546940758,3.72329,2685.8,2685.4,0.65705353]
[1727546942658,3.72329,2685.8,2685.3,0.7603]
[1727546942659,3.72356,2685.6,2685.3,0.7603]
[1727546943451,4.05869,2685.8,2685.3,0.7603]
[1727546943452,3.72345,2685.7,2685.3,0.7603]
[1727546943659,3.72328,2685.8,2685.3,4.48421]
[1727546943854,3.72328,2685.8,2685.4,0.60445148]
[1727546944282,3.7231,2686.0,2685.5,3.72362]
[1727546944434,3.7231,2686.0,2685.6,0.7603]
[1727546946291,3.72308,2686.0,2685.6,0.7603]
[1727546947637,7.4462,2686.0,2685.6,0.7603]
[1727546948954,3.72308,2686.0,2685.6,0.7603]
[1727546949155,3.72334,2685.8,2685.6,0.7603]
[1727546949482,3.72342,2685.7,2685.6,0.7603]
[1727546949892,3.72328,2685.8,2685.6,0.7603]
[1727546957358,7.4465,2685.9,2685.6,0.7603]
[1727546957667,3.72303,2686.0,2685.6,0.7603]
[1727546957989,7.44613,2686.0,2685.6,0.7603]
[1727546958147,4.59652425,2686.0,2685.6,0.75908664]
[1727546958488,3.72317,2685.9,2685.6,0.75908664]
[1727546959582,8.31962425,2686.0,2685.6,0.75908664]
[1727546959793,0.83196243,2685.9,2685.6,0.75908664]
[1727546960765,3.72323,2685.9,2685.6,0.75908664]
[1727546963416,3.72341,2685.8,2685.6,0.75908664]
[1727546964585,3.72323,2685.9,2685.6,0.75908664]
[1727546964797,3.72322,2685.9,2685.6,0.75908664]
[1727546965800,7.44644,2685.9,2685.6,0.75908664]
[1727546966576,3.72322,2685.9,2685.6,0.75908664]
[1727546967517,3.72297,2686.1,2685.7,3.7234]
[1727546967679,3.72267,2686.3,2685.8,0.7861]
[1727546968183,7.44534,2686.3,2685.8,0.7861]
[1727546968379,5.46258811,2686.3,2685.8,0.7861]
[1727546969014,9.18527811,2686.3,2685.8,0.7861]
[1727546969493,3.72273,2686.2,2685.8,0.7861]
[1727546971412,3.72267,2686.3,2685.8,0.7861]
[1727546971609,3.72266,2686.3,2685.8,0.7861]
[1727546971793,7.27,2686.4,2686.0,0.7861]
[1727546971980,3.72217,2686.6,2686.1,0.7861]
[1727546972318,0.372217,2686.5,2686.1,4.50887]
[1727546972629,3.72217,2686.6,2686.1,4.50887]
[1727546973910,3.72217,2686.6,2686.1,3.72277]
[1727546974112,7.44398,2686.8,2686.3,0.7861]
[1727546974314,3.72211,2686.7,2686.3,0.7861]
[1727546975035,3.72199,2686.8,2686.3,0.7861]
[1727546975330,3.72217,2686.6,2686.3,0.7861]
[1727546975532,3.72199,2686.8,2686.3,0.7861]
[1727546976317,7.44399,2686.8,2686.3,0.7861]
[1727546977695,3.72181,2686.9,2686.3,0.7861]
[1727546977899,3.72196,2686.8,2686.3,0.7861]
[1727546978738,3.72204,2686.7,2686.3,0.7861]
[1727546979236,7.44416,2686.7,2686.3,0.7861]
[1727546979408,3.72204,2686.7,2686.3,0.7861]
[1727546979608,7.44417,2686.7,2686.3,0.7861]
[1727546979829,4.094244,2686.7,2686.3,0.7861]
[1727546980198,3.72219,2686.6,2686.3,0.7861]
[1727546980507,3.72245,2686.4,2686.1,0.8292]
[1727546982000,3.72267,2686.3,2685.8,0.8292]
[1727546982247,3.72289,2686.1,2685.8,0.8292]
[1727546982732,7.78199,2686.3,2685.8,0.8292]
[1727546983346,7.78194,2686.3,2685.8,0.8292]
[1727546984140,3.72289,2686.1,2685.8,0.8292]
[1727546984841,3.7231,2686.0,2685.6,0.8292]
[1727546985299,3.72316,2685.9,2685.6,0.8292]
[1727546986197,7.44589,2686.1,2685.6,0.8292]
[1727546986393,8.08567888,2686.1,2685.6,0.8292]
[1727546988120,3.72302,2686.0,2685.6,0.8292]
[1727546990247,8.08565888,2686.1,2685.6,0.8292]
[1727546990608,0.96458637,2686.0,2685.6,0.8292]
[1727546990845,4.68768637,2686.0,2685.6,0.8292]
[1727546991011,3.7231,2686.0,2685.6,0.8292]
[1727546991207,3.7232,2685.9,2685.6,0.8292]
[1727546997755,7.44648,2685.9,2685.6,0.8292]
[1727546997967,3.7232,2685.9,2685.6,0.8292]
[1727546998160,0.37232,2685.8,2685.6,0.8292]
[1727547000763,0.3366,2686.0,2685.6,0.8292]
[1727547001064,3.723,2686.0,2685.6,0.8292]
[1727547004987,3.72324,2685.9,2685.6,0.8292]
[1727547005160,3.72329,2685.8,2685.6,0.8292]
[1727547006475,7.44665,2685.8,2685.6,0.8292]
[1727547006636,3.72329,2685.8,2685.6,0.8292]
[1727547014003,3.72308,2686.0,2685.6,0.8292]
[1727547014201,3.72282,2686.2,2685.7,3.72341]
[1727547014502,3.72282,2686.2,2685.8,0.7633]
[1727547016058,3.72296,2686.1,2685.8,0.7633]
[1727547017177,4.467538,2686.1,2685.8,0.7633]
[1727547017504,3.72314,2685.9,2685.5,0.8088]
[1727547020289,3.72301,2686.0,2685.5,0.8088]
[1727547020486,3.72331,2685.8,2685.5,0.8088]
[1727547028906,3.72379,2685.5,2685.2,0.8088]
[1727547029107,4.06011,2685.7,2685.2,4.5329]
[1727547029307,7.78363,2685.7,2685.2,4.5329]
[1727547029507,3.72356,2685.6,2685.2,4.5329]
[1727547030227,3.7237,2685.5,2685.2,0.8088]
[1727547032480,3.72389,2685.4,2685.2,0.8088]
[1727547035224,3.7237,2685.5,2685.2,0.8088]
[1727547035604,3.72384,2685.4,2685.2,0.8088]
[1727547040212,3.72384,2685.4,2685.0,0.8295]
[1727547040413,3.72384,2685.4,2685.0,4.55389]
[1727547041240,3.7237,2685.5,2685.0,4.55389]
[1727547041922,3.72388,2685.4,2685.0,0.8295]
[1727547042439,3.7237,2685.5,2685.0,0.8295]
[1727547043047,3.7237,2685.5,2685.0,4.55387]
[1727547044119,7.44749,2685.5,2685.0,4.55387]
[1727547045147,3.7237,2685.5,2685.0,4.55387]
[1727547046115,7.44749,2685.5,2685.0,4.55387]
[1727547046640,3.7237,2685.5,2685.0,4.55387]
[1727547048017,7.44749,2685.5,2685.0,4.55387]
[1727547048454,7.44751,2685.5,2685.0,4.55387]
[1727547049452,3.7237,2685.5,2685.0,4.55387]
[1727547050044,7.44749,2685.5,2685.0,4.55387]
[1727547050361,3.7237,2685.5,2685.0,4.55387]
[1727547052924,7.44747,2685.5,2685.0,4.55387]
[1727547053383,3.7237,2685.5,2685.0,4.55387]
[1727547053800,7.44747,2685.5,2685.0,4.55387]
[1727547055180,3.7237,2685.5,2685.0,4.55387]
[1727547056109,7.44749,2685.5,2685.0,4.55387]
[1727547060415,3.72394,2685.4,2685.0,0.8295]
[1727547061286,3.72402,2685.3,2685.0,0.8295]
[1727547062835,3.72413,2685.2,2685.0,0.8295]
[1727547064736,3.72425,2685.1,2684.7,0.7581]
[1727547068317,3.72443,2685.0,2684.7,0.7581]
[1727547068940,3.72484,2684.7,2684.4,0.7581]
[1727547070750,3.72496,2684.6,2684.4,0.7581]
[1727547078055,3.72488,2684.7,2684.4,0.7581]
[1727547084456,3.72498,2684.6,2684.4,0.7581]
[1727547085754,7.45001,2684.6,2684.4,0.7581]
[1727547085978,3.72508,2684.5,2684.2,0.7925]
[1727547088463,7.45024,2684.5,2684.2,0.7925]
[1727547088971,3.72508,2684.5,2684.2,0.7925]
[1727547092064,7.45027,2684.5,2684.2,0.7925]
[1727547092360,3.72529,2684.4,2684.0,0.8034]
[1727547097390,3.72537,2684.3,2684.0,0.8034]
[1727547099045,3.72564,2684.1,2684.0,0.8034]
[1727547101838,3.72537,2684.3,2684.0,0.8034]
[1727547102054,7.45087,2684.3,2684.0,0.8034]
[1727547102365,3.72551,2684.2,2684.0,0.8034]
[1727547103947,3.72551,2684.2,2683.7,0.7932]
[1727547104150,3.72574,2684.1,2683.7,0.7932]
[1727547104584,3.7258,2684.0,2683.7,0.7932]
[1727547114312,3.72581,2684.0,2683.7,0.7932]
[1727547115487,7.45173,2684.0,2683.7,0.7932]
[1727547116090,3.72581,2684.0,2683.7,0.7932]
[1727547117018,7.45172,2684.0,2683.7,0.7932]
[1727547117380,3.72593,2683.9,2683.7,0.7932]
[1727547118283,3.72577,2684.1,2683.7,0.7932]
[1727547118483,3.7258,2684.0,2683.7,0.7932]
[1727547119322,3.72595,2683.9,2683.7,0.7932]
[1727547119481,7.45169,2684.0,2683.7,0.7932]
[1727547119684,3.7258,2684.0,2683.7,0.7932]
[1727547120113,7.45167,2684.0,2683.7,0.7932]
[1727547120404,3.7258,2684.0,2683.7,0.7932]
[1727547121300,4.46842,2684.2,2683.7,0.7932]
[1727547121301,3.72565,2684.1,2683.7,0.7932]
[1727547125201,3.7256,2684.2,2683.7,3.72617]
[1727547125430,3.7256,2684.2,2683.8,0.7627]
[1727547126308,7.45121,2684.2,2683.8,0.7627]
[1727547128209,3.7256,2684.2,2683.8,0.7627]
[1727547129226,7.45122,2684.2,2683.8,0.7627]
[1727547129588,3.72569,2684.1,2683.8,0.7627]
[1727547131025,7.27,2684.7,2684.0,0.7892]
[1727547131231,3.72489,2684.7,2684.2,0.7892]
[1727547131429,3.72495,2684.6,2684.2,1.40415415]
[1727547131592,3.72489,2684.7,2684.2,1.40415415]
[1727547132429,3.72461,2684.9,2684.4,0.7892]
[1727547132620,3.72461,2684.9,2684.6,0.7892]
[1727547137629,3.72433,2685.1,2684.6,0.7892]
[1727547140904,3.72433,2685.1,2684.6,4.51414]
[1727547141107,4.06061,2685.3,2685.0,0.7813]
[1727547141108,3.72401,2685.3,2685.0,0.7813]
[1727547141622,3.72415,2685.2,2685.0,0.7813]
[1727547143636,3.72401,2685.3,2685.0,0.7813]
[1727547143821,7.44808,2685.3,2685.0,0.7813]
[1727547144732,3.72413,2685.2,2685.0,0.7813]
[1727547147055,3.72344,2685.7,2685.1,1.56020482]
[1727547147361,3.72359,2685.6,2685.2,0.7723]
[1727547147521,3.7237,2685.5,2685.2,0.7723]
[1727547148055,3.72357,2685.6,2685.2,0.7723]
[1727547152961,3.72377,2685.5,2685.2,0.7723]
[1727547153869,3.7235,2685.7,2685.2,4.4964]
[1727547156860,0.3366,2685.8,2685.2,0.7723]
[1727547157037,3.72363,2685.6,2685.2,0.7723]
[1727547159326,7.44728,2685.6,2685.2,0.7723]
[1727547159538,3.72363,2685.6,2685.2,0.7723]
[1727547161378,7.44728,2685.6,2685.2,0.7723]
[1727547161775,3.72363,2685.6,2685.2,0.7723]
[1727547162156,7.44728,2685.6,2685.2,0.7723]
[1727547162465,3.72363,2685.6,2685.2,0.7723]
[1727547167271,7.44728,2685.6,2685.2,0.7723]
[1727547167688,3.72363,2685.6,2685.2,0.7723]
[1727547179536,7.4473,2685.6,2685.2,0.7723]
[1727547179735,4.50202,2685.6,2685.2,0.7723]
[1727547179899,8.2257,2685.6,2685.2,0.7723]
[1727547180843,3.72372,2685.5,2685.2,0.7723]
[1727547181141,8.22568,2685.6,2685.2,0.7723]
[1727547181631,4.50202,2685.6,2685.2,0.7723]
[1727547182131,8.2257,2685.6,2685.2,0.7723]
[1727547182335,3.7237,2685.5,2685.2,0.7723]
[1727547184118,0.77839,2685.6,2685.2,0.7723]
[1727547184315,4.50202,2685.6,2685.2,0.7723]
[1727547184672,3.72371,2685.5,2685.2,0.7723]
[1727547187633,3.72359,2685.6,2685.2,0.7723]
[1727547188050,3.7237,2685.5,2685.2,0.7723]
[1727547190170,3.72351,2685.7,2685.2,0.7723]
[1727547190374,7.44706,2685.7,2685.2,0.7723]
[1727547190547,3.72357,2685.6,2685.2,0.7723]
[1727547193783,3.72344,2685.7,2685.2,4.49641]
[1727547194485,3.72344,2685.7,2685.2,4.70219848]
[1727547194685,2.34947166,2685.8,2685.3,4.52619]
[1727547194988,2.34947166,2685.8,2685.2,4.70219848]
[1727547194989,3.7232,2685.9,2685.5,0.8023]
[1727547195679,7.44646,2685.9,2685.5,0.8023]
[1727547195880,3.7232,2685.9,2685.5,0.8023]
[1727547196109,3.72329,2685.8,2685.5,0.8023]
[1727547197608,3.7232,2685.9,2685.5,0.8023]
[1727547197814,2.34987909,2686.0,2685.6,0.8134]
[1727547198413,3.72295,2686.1,2685.6,2.37360482]
[1727547198576,3.72295,2686.1,2685.7,0.8134]
[1727547199115,6.07254909,2686.3,2685.8,1.56020482]
[1727547199299,3.72251,2686.4,2685.9,0.8134]
[1727547199473,3.72233,2686.5,2686.2,1.56020482]
[1727547199820,3.72233,2686.5,2686.3,0.8134]
[1727547203667,3.72222,2686.6,2686.3,0.8134]
[1727547204166,3.72184,2686.9,2686.4,1.56020482]
[1727547204366,3.72196,2686.8,2686.4,1.7975653]
[1727547204575,3.72196,2686.8,2686.4,1.56020482]
[1727547204931,3.72216,2686.7,2686.3,0.8134]
[1727547205575,3.72196,2686.8,2686.3,0.8134]
[1727547205873,3.72215,2686.7,2686.3,1.79531748]
[1727547206432,3.72196,2686.8,2686.3,1.79531748]
[1727547206632,7.44394,2686.8,2686.3,1.79531748]
[1727547207054,3.72212,2686.7,2686.3,1.79531748]
[1727547211343,3.7222,2686.6,2686.3,1.79531748]
[1727547211681,3.72231,2686.5,2686.3,0.8134]
[1727547212256,7.44448,2686.6,2686.3,0.8134]
[1727547212458,3.72237,2686.5,2686.3,0.8134]
[1727547213190,7.44451,2686.6,2686.3,0.8134]
[1727547213345,3.72237,2686.5,2686.3,0.8134]
[1727547213677,3.72237,2686.5,2686.0,0.8134]
[1727547213857,3.72246,2686.4,2686.0,0.8134]
[1727547219801,3.72246,2686.4,2686.0,4.53639]
[1727547220094,3.72231,2686.5,2686.1,0.825941]
[1727547221199,1.56020482,2687.0,2686.1,0.825941]
[1727547221200,3.72217,2686.7,2686.2,0.8092]
[1727547221381,3.72217,2686.7,2686.2,5.22417358]
[1727547222466,3.72225,2686.6,2686.2,1.50145358]
[1727547222662,3.72206,2686.7,2686.2,0.8092]
[1727547223127,3.72206,2686.7,2686.2,4.53185]
[1727547223270,3.72199,2686.8,2686.3,0.825468]
[1727547223791,3.72199,2686.8,2686.4,0.8092]
[1727547224299,3.72166,2687.0,2686.5,3.72223]
[1727547224498,3.72166,2687.0,2686.5,4.6301698]
[1727547224972,3.72182,2686.9,2686.4,4.53163]
[1727547225176,3.72182,2686.9,2686.4,0.8092]
[1727547225803,3.72205,2686.7,2686.4,0.8092]
[1727547226291,7.44417,2686.7,2686.4,0.8092]
[1727547226671,3.72205,2686.7,2686.4,0.8092]
[1727547226967,7.44419,2686.7,2686.4,0.8092]
[1727547227171,3.72221,2686.6,2686.4,0.8092]
[1727547228372,3.72231,2686.5,2686.4,0.8092]
[1727547228581,3.72231,2686.5,2686.0,0.8092]
[1727547228888,3.72231,2686.5,2686.0,4.985423]
[1727547230421,3.72231,2686.5,2686.0,0.8092]
[1727547230779,3.72231,2686.5,2686.0,4.5322]
[1727547233290,3.7221,2686.7,2686.1,4.53199]
[1727547233492,7.44423,2686.7,2686.1,4.53199]
[1727547233693,3.7221,2686.7,2686.1,5.51351548]
[1727547235493,3.72219,2686.6,2686.1,5.51351548]
[1727547237215,3.72234,2686.5,2686.1,1.79072548]
[1727547238694,3.72234,2686.5,2686.2,0.70739003]
[1727547239982,7.44427,2686.7,2686.2,0.70739003]
[1727547240321,3.72219,2686.6,2686.2,0.70739003]
[1727547240480,3.72219,2686.6,2686.1,5.51358548]
[1727547245591,3.72219,2686.6,2686.2,0.7777]
[1727547247706,3.72235,2686.5,2686.2,0.7777]
[1727547248490,7.44427,2686.7,2686.2,0.7777]
[1727547248693,3.7221,2686.7,2686.3,0.7813]
[1727547249224,7.44422,2686.7,2686.3,0.7813]
[1727547249428,3.7221,2686.7,2686.3,0.7813]
[1727547249605,3.72184,2686.9,2686.4,5.28261482]
[1727547249925,3.72184,2686.9,2686.5,0.7813]
[1727547250289,7.4437,2686.9,2686.5,0.7813]
[1727547250528,3.72184,2686.9,2686.5,0.7813]
[1727547250733,7.4437,2686.9,2686.5,0.7813]
[1727547251024,3.72163,2687.0,2686.5,4.50361]
[1727547251324,3.72177,2686.9,2686.6,0.7813]
[1727547251529,3.72166,2687.0,2686.6,0.7813]
[1727547253559,3.72176,2686.9,2686.6,0.7813]
[1727547254440,3.72176,2686.9,2686.6,1.43976996]
[1727547260661,3.72176,2686.9,2686.6,0.7813]
[1727547262240,3.72176,2686.9,2686.6,2.34150482]
[1727547262443,3.72176,2686.9,2686.7,0.7645]
[1727547263257,3.72164,2687.0,2686.7,0.7645]
[1727547263725,3.72177,2686.9,2686.7,0.7645]
[1727547267463,3.72164,2687.0,2686.7,0.7645]
[1727547269174,3.72182,2686.9,2686.7,0.7645]
[1727547269640,3.72164,2687.0,2686.7,0.7645]
[1727547273038,7.44335,2687.0,2686.7,0.7645]
[1727547273240,3.72182,2686.9,2686.7,0.7645]
[1727547273944,3.72164,2687.0,2686.7,0.7645]
[1727547274859,3.72178,2686.9,2686.7,0.7645]
[1727547275065,3.72164,2687.0,2686.7,0.7645]
[1727547275285,7.44337,2687.0,2686.7,0.7645]
[1727547275582,3.72164,2687.0,2686.7,0.7645]
[1727547278880,3.72179,2686.9,2686.7,0.7645]
[1727547279283,3.72199,2686.8,2686.3,0.7648]
[1727547279442,3.72224,2686.6,2686.3,0.7648]
[1727547281082,3.72204,2686.7,2686.3,0.7648]
[1727547281385,3.72199,2686.8,2686.3,0.7648]
[1727547281386,3.72199,2686.8,2686.4,1.56020482]
[1727547281683,3.72198,2686.8,2686.5,0.7648]
[1727547283058,4.0583,2687.0,2686.5,0.7648]
[1727547283266,3.72176,2686.9,2686.5,1.21353]
[1727547283463,3.72176,2686.9,2686.5,0.7648]
[1727547286552,3.7217,2687.0,2686.5,0.7648]
[1727547286981,3.72176,2686.9,2686.5,0.7648]
[1727547290358,7.44345,2687.0,2686.5,0.7648]